{"text_format":"3","workbook":"xlsx","n_sheets":2,"sheets":["DONNÉES DE CROISSANCE","GRAPHIQUE DE CROISSANCE"],"not_rendered":{"charts":1,"defined_names":3},"read":"whole","date_system":"1900"}

{"sheet":"DONNÉES DE CROISSANCE","index":0,"n_rows":23,"n_cols":8,"rows_kept":23,"merged":[[0,1,0,7],[1,2,1,7]]}
[null,"Croissance de bébé "]
[null,"Nom du bébé :","Nom"]
[null,"Âge","Kilogrammes","Grammes","Poids (kg)","Percentile de poids","Taille (cm)","Percentile de taille"]
[null,"Naissance",7,null,{"$f":"IF(COUNT(Données[[#This Row],[Kilogrammes]:[Grammes]])>0,Données[[#This Row],[Kilogrammes]]+(Données[[#This Row],[Grammes]]/16),NA())","v":7},40,19.5,70]
[null,"4 jours",6,8,{"$f":"IF(COUNT(Données[[#This Row],[Kilogrammes]:[Grammes]])>0,Données[[#This Row],[Kilogrammes]]+(Données[[#This Row],[Grammes]]/16),NA())","v":6.5},41,19.5,70]
[null,"7 jours",6,4.8,{"$f":"IF(COUNT(Données[[#This Row],[Kilogrammes]:[Grammes]])>0,Données[[#This Row],[Kilogrammes]]+(Données[[#This Row],[Grammes]]/16),NA())","v":6.3},42,20,71]
[null,"11 jours",6,9.6,{"$f":"IF(COUNT(Données[[#This Row],[Kilogrammes]:[Grammes]])>0,Données[[#This Row],[Kilogrammes]]+(Données[[#This Row],[Grammes]]/16),NA())","v":6.6},43,20,71]
[null,"14 jours",7,null,{"$f":"IF(COUNT(Données[[#This Row],[Kilogrammes]:[Grammes]])>0,Données[[#This Row],[Kilogrammes]]+(Données[[#This Row],[Grammes]]/16),NA())","v":7},44,20,71]
[null,"18 jours",7,12,{"$f":"IF(COUNT(Données[[#This Row],[Kilogrammes]:[Grammes]])>0,Données[[#This Row],[Kilogrammes]]+(Données[[#This Row],[Grammes]]/16),NA())","v":7.75},45,21,72]
[null,"21 jours",8,8,{"$f":"IF(COUNT(Données[[#This Row],[Kilogrammes]:[Grammes]])>0,Données[[#This Row],[Kilogrammes]]+(Données[[#This Row],[Grammes]]/16),NA())","v":8.5},46,21,72]
[null,"25 jours",null,null,{"$f":"IF(COUNT(Données[[#This Row],[Kilogrammes]:[Grammes]])>0,Données[[#This Row],[Kilogrammes]]+(Données[[#This Row],[Grammes]]/16),NA())","v":{"$error":"#N/A"}}]
[null,"28 jours",null,null,{"$f":"IF(COUNT(Données[[#This Row],[Kilogrammes]:[Grammes]])>0,Données[[#This Row],[Kilogrammes]]+(Données[[#This Row],[Grammes]]/16),NA())","v":{"$error":"#N/A"}}]
[null,"5 semaines",null,null,{"$f":"IF(COUNT(Données[[#This Row],[Kilogrammes]:[Grammes]])>0,Données[[#This Row],[Kilogrammes]]+(Données[[#This Row],[Grammes]]/16),NA())","v":{"$error":"#N/A"}}]
[null,"6 semaines",null,null,{"$f":"IF(COUNT(Données[[#This Row],[Kilogrammes]:[Grammes]])>0,Données[[#This Row],[Kilogrammes]]+(Données[[#This Row],[Grammes]]/16),NA())","v":{"$error":"#N/A"}}]
[null,"7 semaines",null,null,{"$f":"IF(COUNT(Données[[#This Row],[Kilogrammes]:[Grammes]])>0,Données[[#This Row],[Kilogrammes]]+(Données[[#This Row],[Grammes]]/16),NA())","v":{"$error":"#N/A"}}]
[null,"2 mois",null,null,{"$f":"IF(COUNT(Données[[#This Row],[Kilogrammes]:[Grammes]])>0,Données[[#This Row],[Kilogrammes]]+(Données[[#This Row],[Grammes]]/16),NA())","v":{"$error":"#N/A"}}]
[null,"3 mois",null,null,{"$f":"IF(COUNT(Données[[#This Row],[Kilogrammes]:[Grammes]])>0,Données[[#This Row],[Kilogrammes]]+(Données[[#This Row],[Grammes]]/16),NA())","v":{"$error":"#N/A"}}]
[null,"6 mois",null,null,{"$f":"IF(COUNT(Données[[#This Row],[Kilogrammes]:[Grammes]])>0,Données[[#This Row],[Kilogrammes]]+(Données[[#This Row],[Grammes]]/16),NA())","v":{"$error":"#N/A"}}]
[null,"9 mois",null,null,{"$f":"IF(COUNT(Données[[#This Row],[Kilogrammes]:[Grammes]])>0,Données[[#This Row],[Kilogrammes]]+(Données[[#This Row],[Grammes]]/16),NA())","v":{"$error":"#N/A"}}]
[null,"12 mois",null,null,{"$f":"IF(COUNT(Données[[#This Row],[Kilogrammes]:[Grammes]])>0,Données[[#This Row],[Kilogrammes]]+(Données[[#This Row],[Grammes]]/16),NA())","v":{"$error":"#N/A"}}]
[null,"18 mois",null,null,{"$f":"IF(COUNT(Données[[#This Row],[Kilogrammes]:[Grammes]])>0,Données[[#This Row],[Kilogrammes]]+(Données[[#This Row],[Grammes]]/16),NA())","v":{"$error":"#N/A"}}]
[null,"24 mois",null,null,{"$f":"IF(COUNT(Données[[#This Row],[Kilogrammes]:[Grammes]])>0,Données[[#This Row],[Kilogrammes]]+(Données[[#This Row],[Grammes]]/16),NA())","v":{"$error":"#N/A"}}]
[null,"36 mois",null,null,{"$f":"IF(COUNT(Données[[#This Row],[Kilogrammes]:[Grammes]])>0,Données[[#This Row],[Kilogrammes]]+(Données[[#This Row],[Grammes]]/16),NA())","v":{"$error":"#N/A"}}]

{"sheet":"GRAPHIQUE DE CROISSANCE","index":1,"n_rows":1,"n_cols":2,"rows_kept":1,"merged":[[0,1,1,1]]}
[null,{"$f":"'DONNÉES DE CROISSANCE'!B1&\" Chart\"","v":"Croissance de bébé  Chart"}]